bitfinex-derivatives/quotes_ETHF0:USTF0_20250726
["timestamp","ask_amount","ask_price","bid_price","bid_amount"]
[1753502683324,0.8051,3741.8,3741.7,3.20958]
[1753502683725,1.8969,3741.8,3741.7,3.20958]
[1753502683924,3.65051919,3741.8,3741.7,2.1846]
[1753502684120,2.93627,3741.8,3741.7,1.4148]
[1753502684320,2.93627,3741.8,3741.7,0.7988]
[1753502684619,2.93627,3741.8,3741.7,0.3117]
[1753502685321,1.6215,3741.6,3741.5,0.7988]
[1753502685520,2.9363,3741.6,3741.5,0.7988]
[1753502686328,3.2078,3741.9,3741.3,1.4148]
[1753502686329,2.93632,3741.4,3741.3,1.4148]
[1753502686821,2.93632,3741.4,3741.3,1.8532]
[1753502687024,2.93632,3741.4,3741.3,2.1846]
[1753502687421,2.93632,3741.4,3741.3,1.8532]
[1753502689132,2.93632,3741.4,3741.3,3.20964]
[1753502689330,2.62552,3741.4,3741.3,3.20964]
[1753502689531,2.62552,3741.4,3741.3,2.6752]
[1753502689830,2.0911,3741.4,3741.3,3.20964]
[1753502690433,2.62552,3741.4,3741.3,2.6752]
[1753502690833,2.62552,3741.4,3741.3,3.20964]
[1753502691721,2.62552,3741.4,3740.7,0.4871]
[1753502691722,1.3361,3741.3,3740.7,0.4871]
[1753502691925,1.0871,3740.6,3740.5,1.28465]
[1753502692126,2.93644,3740.6,3740.5,2.08249145]
[1753502692537,2.4019,3740.6,3740.5,2.61704145]
[1753502692731,2.93644,3740.6,3740.5,2.41389145]
[1753502693035,2.4019,3740.6,3740.5,2.41389145]
[1753502693532,2.4019,3740.6,3740.5,2.94844145]
[1753502693937,2.4019,3740.6,3740.5,2.41389145]
[1753502694239,3.65206388,3740.6,3740.5,2.41410237]
[1753502694429,3.65206388,3740.6,3740.5,1.46670237]
[1753502694632,3.65206388,3740.6,3740.5,1.02830237]
[1753502694934,3.65206388,3740.6,3740.5,0.3117]
[1753502695830,3.65206388,3740.6,3740.5,0.7988]
[1753502696030,3.65206388,3740.6,3740.5,0.3117]
[1753502696834,3.65206388,3740.6,3740.5,0.7988]
[1753502698032,2.0911,3739.9,3739.8,2.3046189]
[1753502698238,2.62574,3739.9,3739.8,1.9996447]
[1753502698438,2.93654,3739.9,3739.8,1.9996447]
[1753502698638,2.93654,3739.9,3739.8,2.8730689]
[1753502698938,2.62574,3739.9,3739.8,2.8730689]
[1753502699139,2.43154,3739.9,3739.8,2.8730689]
[1753502699335,0.8051,3739.9,3739.8,3.4077189]
[1753502699542,0.4649,3739.9,3739.8,3.4077189]
[1753502700630,0.4649,3739.9,3739.8,6.6155189]
[1753502700837,0.4649,3739.9,3739.8,3.4077189]
[1753502702529,0.4649,3739.9,3739.8,0.6849689]
[1753502702530,2.90334,3739.9,3739.8,0.6849689]
[1753502702734,2.90334,3739.9,3739.8,0.1978689]
[1753502703042,2.90334,3739.9,3739.8,1.0214689]
[1753502703237,2.90334,3739.9,3739.8,2.4093689]
[1753502703746,2.3687,3739.9,3739.8,2.9440189]
[1753502704035,2.90334,3739.9,3739.8,2.4093689]
[1753502704235,2.90334,3739.9,3739.8,2.0832689]
[1753502704435,2.90334,3739.9,3739.8,2.6179189]
[1753502704632,2.90334,3739.9,3739.8,2.9440189]
[1753502705142,2.3687,3739.9,3739.8,2.9440189]
[1753502705540,2.3687,3739.9,3739.8,3.4335189]
[1753502705741,2.0785,3739.9,3739.8,3.4335189]
[1753502706635,2.0785,3739.9,3739.8,2.8988689]
[1753502707143,2.61314,3739.9,3739.8,3.4335189]
[1753502707342,2.0785,3739.9,3739.8,3.4335189]
[1753502707643,2.0785,3739.9,3739.8,2.8988689]
[1753502707839,2.0785,3739.9,3739.8,3.4335189]
[1753502708537,4.175,3740.2,3740.1,1.62031]
[1753502708737,4.6504,3740.2,3740.1,3.23561]
[1753502709144,5.0856,3740.2,3740.1,3.23561]
[1753502709637,5.267,3740.2,3740.1,3.23561]
[1753502710941,6.0918,3740.2,3740.1,2.2115]
[1753502711141,6.0918,3740.2,3740.1,1.8854]
[1753502713442,6.0918,3740.2,3740.1,3.23561]
[1753502713443,4.3462,3740.2,3740.1,3.23561]
[1753502713639,4.6504,3740.2,3740.1,3.23561]
[1753502713941,5.6202,3740.2,3740.1,3.23561]
[1753502714141,2.5938,3740.2,3740.1,3.23561]
[1753502714334,1.8778,3740.2,3740.1,3.23561]
[1753502714543,0.7858,3740.2,3740.1,3.23561]
[1753502715235,1.221,3740.5,3740.4,3.23557]
[1753502715442,0.4816,3740.5,3740.4,3.23557]
[1753502716036,0.7858,3740.5,3740.4,3.23557]
[1753502716244,1.4426,3740.5,3740.4,3.23557]
[1753502716448,1.8778,3740.5,3740.4,3.23557]
[1753502716641,2.0592,3740.5,3740.4,2.701]
[1753502717042,2.0592,3740.5,3740.4,3.23557]
[1753502718247,1.5776,3740.8,3740.7,1.62022]
[1753502718442,1.5776,3740.8,3740.7,2.701]
[1753502718846,2.3494,3740.8,3740.7,2.701]
[1753502719043,2.3494,3740.8,3740.7,2.74602]
[1753502719846,2.88391,3740.8,3740.7,2.74602]
[1753502720051,2.3494,3740.8,3740.7,2.74602]
[1753502720253,3.59990534,3740.8,3740.7,2.74602]
[1753502720651,3.06539534,3740.8,3740.7,2.74602]
[1753502720953,2.3494,3740.8,3740.7,2.74602]
[1753502721152,3.06510887,3740.8,3740.7,2.74602]
[1753502722255,0.3042,3740.2,3740.1,3.7039]
[1753502722453,1.4426,3740.2,3740.1,6.67139937]
[1753502722658,1.4426,3740.2,3740.1,6.44341]
[1753502723053,2.0482,3740.2,3740.1,3.23561]
[1753502723253,2.3208,3740.2,3740.1,2.74611]
[1753502727952,2.3208,3740.2,3740.1,3.23561]
[1753502730358,2.0482,3740.2,3740.1,3.23561]
[1753502731954,1.4369,3740.5,3740.4,3.10727]
[1753502732259,0.8006,3740.5,3740.4,3.10727]
[1753502733056,0.4933,3740.5,3740.4,3.10727]
[1753502733864,2.0383,3740.5,3740.4,3.10727]
[1753502734160,2.3009,3740.5,3740.4,2.65547]
[1753502736064,2.3009,3740.5,3740.4,2.1209]
[1753502736365,2.3009,3740.5,3740.4,2.65547]
[1753502740061,1.0072,3740.1,3740.0,1.021]
[1753502740260,2.3009,3740.1,3740.0,2.88378661]
[1753502742559,0.6363,3740.5,3740.0,1.24926661]
[1753502742759,3.6792,3740.7,3740.6,1.021]
[1753502743064,5.0154,3740.7,3740.6,2.1209]
[1753502743262,0.53455,3740.5,3740.4,0.6471]
[1753502743464,2.3009,3740.3,3740.2,0.53459]
[1753502743660,2.3009,3740.3,3740.2,0.763658]
[1753502743860,2.3009,3740.3,3740.2,1.535558]
[1753502744158,2.3009,3740.3,3740.2,1.53560816]
[1753502744356,2.3009,3740.3,3740.2,0.7719]
[1753502744970,2.3009,3740.3,3740.2,1.3065]
[1753502745467,2.3009,3740.3,3740.2,2.6555]
[1753502745667,2.3009,3740.3,3740.2,2.88462476]
[1753502745864,2.0383,3740.3,3740.2,3.33642476]
[1753502746366,1.8742,3740.3,3740.2,3.33642476]
[1753502746564,1.2379,3740.3,3740.2,3.33642476]
[1753502746962,1.8742,3740.3,3740.2,3.33642476]
[1753502748066,2.0303,3740.3,3740.2,3.33642476]
[1753502749268,2.2801,3740.3,3740.2,2.35002476]
[1753502749469,2.81468,3740.3,3740.2,0.22912476]
[1753502749766,3.53075276,3740.3,3740.2,0.22912476]
[1753502750765,1.52902,3740.1,3740.0,0.7719]
[1753502751070,1.52902,3740.1,3740.0,2.04905471]
[1753502751370,2.81472,3740.1,3740.0,2.04905471]
[1753502751769,2.81472,3740.1,3740.0,1.8199]
[1753502752277,2.81474,3739.9,3739.8,0.1978689]
[1753502752466,6.02254,3739.9,3739.8,0.1978689]
[1753502752770,1.8742,3739.9,3739.8,2.99967918]
[1753502752971,2.40884,3739.9,3739.8,2.7705689]
[1753502753168,2.56494,3739.9,3739.8,2.7705689]
[1753502753366,2.81474,3739.9,3739.8,0.9697689]
[1753502753772,2.81474,3739.9,3739.8,1.19879374]
[1753502754175,2.81474,3739.9,3739.8,1.84589374]
[1753502754472,2.81474,3739.9,3739.8,0.4268755]
[1753502755065,2.81474,3739.9,3739.8,1.5996755]
[1753502755373,2.81474,3739.9,3739.8,2.3187689]
[1753502755671,2.81474,3739.9,3739.8,2.54775795]
[1753502755872,2.81474,3739.9,3739.8,2.3187689]
[1753502756070,2.81474,3739.9,3739.8,2.0177689]
[1753502756371,2.81474,3739.9,3739.8,1.3706689]
[1753502756872,2.81474,3739.9,3739.8,0.5169689]
[1753502757068,6.02254,3739.9,3739.8,0.1978689]
[1753502757672,6.73840092,3739.9,3739.8,0.1978689]
[1753502758865,6.73840092,3739.9,3739.8,0.6506689]
[1753502759771,6.73840092,3739.9,3739.8,0.9697689]
[1753502760473,6.73840092,3739.9,3739.8,1.5663689]
[1753502760976,6.73840092,3739.9,3739.8,0.9697689]
[1753502761176,6.73840092,3739.9,3739.8,2.2645689]
[1753502765078,0.7695,3740.2,3739.8,2.7208689]
[1753502765279,1.47162,3740.1,3740.0,1.014]
[1753502765467,2.99356206,3740.1,3740.0,0.53462]
[1753502765674,1.65432,3740.0,3739.9,1.7725]
[1753502765873,2.71772,3740.0,3739.9,2.30714]
[1753502766179,2.71772,3740.0,3739.9,1.7725]
[1753502766872,2.71772,3740.0,3739.9,2.0709]
[1753502769876,3.43527225,3740.0,3739.9,2.0709]
[1753502770181,2.71772,3740.0,3739.9,2.0709]
[1753502770576,3.43529364,3740.0,3739.9,2.0709]
[1753502770773,2.71772,3740.0,3739.9,2.0709]
[1753502771379,2.71772,3740.0,3739.9,2.5272]
[1753502772185,2.48232,3740.0,3739.9,2.5272]
[1753502772372,1.1782,3740.0,3739.9,3.06184]
[1753502772569,0.53462,3740.1,3739.9,3.06184]
[1753502772777,0.53462,3740.1,3740.0,1.54862]
[1753502773070,0.7556,3740.1,3740.0,3.06182]
[1753502773282,1.4731889,3740.1,3740.0,3.06182]
[1753502773475,2.0077989,3740.1,3740.0,3.06182]
[1753502773780,1.4731889,3740.1,3740.0,3.06182]
[1753502774280,2.0955889,3740.1,3740.0,3.06182]
[1753502775075,2.71774,3739.9,3739.8,1.5705689]
[1753502775276,2.71774,3739.9,3739.8,2.2687689]
[1753502775877,3.43555155,3739.9,3739.8,2.2687689]
[1753502777484,1.15881155,3739.9,3739.8,2.7250689]
[1753502777689,1.15881155,3739.9,3739.8,3.2597189]
[1753502777984,0.441,3740.1,3740.0,1.54862]
[1753502778184,0.9756,3740.3,3740.1,0.53461]
[1753502778378,0.9756,3740.3,3740.2,2.5272]
[1753502778574,1.15904269,3740.3,3740.2,3.0618]
[1753502778785,1.69362269,3740.3,3740.2,3.0618]
[1753502778984,2.00822269,3740.3,3740.2,2.5272]
[1753502779383,1.47364269,3740.3,3740.2,3.0618]
[1753502780786,2.09604269,3740.3,3740.2,3.0618]
[1753502781688,1.47364269,3740.3,3740.2,3.0618]
[1753502781984,0.7556,3740.3,3740.2,3.0618]
[1753502782882,1.9477,3740.3,3740.2,3.2903812]
[1753502783088,2.71768,3740.3,3740.2,2.2994812]
[1753502783287,2.1831,3740.3,3740.2,2.6055]
[1753502783589,2.71768,3740.3,3740.2,2.0709]
[1753502783790,2.71768,3740.3,3740.2,1.7725]
[1753502783990,2.71768,3740.3,3740.2,1.1759]
[1753502784692,2.71768,3740.3,3740.2,0.7761]
[1753502784986,3.43573204,3740.3,3740.2,0.7761]
[1753502785187,2.71771,3740.1,3740.0,0.3158]
[1753502785493,2.71771,3740.1,3739.8,0.9739689]
[1753502785494,2.71774,3739.9,3739.8,0.9739689]
[1753502785792,2.1831,3739.9,3739.8,3.0319981]
[1753502787197,2.1831,3739.9,3739.8,2.8034189]
[1753502787887,2.71774,3739.9,3739.8,2.2687689]
[1753502789595,2.1831,3739.9,3739.8,2.8034189]
[1753502789800,2.71774,3739.9,3739.8,2.8034189]
[1753502790202,2.1831,3739.9,3739.8,2.8034189]
[1753502790503,2.1831,3739.9,3739.8,3.2637189]
[1753502791404,0.441,3739.9,3739.8,3.2637189]
[1753502792004,0.7539,3739.9,3739.8,3.2637189]
[1753502792496,1.3273,3739.9,3739.8,3.2637189]
[1753502794599,3.93954949,3740.5,3739.8,3.2637189]
[1753502794600,0.4371,3740.5,3740.4,2.5079]
[1753502794806,2.43997907,3740.5,3740.4,2.5079]
[1753502795001,2.57037907,3740.5,3740.4,3.04247]
[1753502795494,1.86657907,3740.5,3740.4,3.04247]
[1753502795899,1.1486,3740.5,3740.4,3.04247]
[1753502796101,1.722,3740.5,3740.4,3.04247]
[1753502797211,1.722,3740.5,3740.4,3.27070573]
[1753502798109,1.4091,3741.0,3740.5,1.5131]
[1753502798312,0.75,3740.9,3740.8,0.9948]
[1753502798501,0.75,3740.9,3740.8,3.04241]
[1753502798903,1.722,3740.9,3740.8,3.04241]
[1753502799103,0.4371,3741.3,3741.2,0.53445]
[1753502799405,0.4371,3741.6,3741.5,3.04231]
[1753502799598,1.0105,3741.9,3741.7,1.52918]
[1753502799803,1.15390822,3741.8,3741.7,2.5079]
[1753502800306,1.15390822,3741.8,3741.7,3.04228]
[1753502800711,2.77790822,3741.8,3741.7,2.58198]
[1753502803008,2.0611,3741.8,3741.7,2.58198]
[1753502803209,1.8524,3741.8,3741.7,3.04228]
[1753502803415,1.722,3741.8,3741.7,3.04228]
[1753502805512,1.722,3741.8,3741.7,2.0476]
[1753502805513,1.8524,3741.8,3741.7,2.0476]
[1753502805712,1.8524,3741.8,3741.7,2.58198]
[1753502806308,2.0611,3741.8,3741.7,2.58198]
[1753502813821,2.0327,3741.4,3741.3,0.6903]
[1753502814026,2.0327,3741.4,3741.3,1.66494]
[1753502814525,2.0327,3741.4,3741.3,2.27754]
[1753502817327,0.3986,3740.7,3740.6,0.3946]
[1753502817530,2.0327,3740.7,3740.6,1.52934]
[1753502817932,2.0327,3740.7,3740.6,2.58214]
[1753502818428,2.0327,3740.7,3740.6,3.04244]
[1753502819530,1.8415,3740.7,3740.6,3.04244]
[1753502823023,2.0319,3740.7,3740.6,0.7359]
[1753502823336,2.0319,3740.7,3740.6,0.83024]
[1753502823729,2.0319,3740.7,3740.6,1.28894]
[1753502823925,2.0319,3740.7,3740.6,1.85204]
[1753502824433,2.0319,3740.7,3740.6,2.24174]
[1753502824929,2.0319,3740.7,3740.6,2.54514]
[1753502827929,2.0319,3740.7,3740.6,0.53454]
[1753502828125,2.0319,3740.7,3740.6,0.99324]
[1753502828326,2.0319,3740.7,3740.6,1.28134]
[1753502828526,2.0319,3740.7,3740.6,2.23414]
[1753502828728,2.0319,3740.7,3740.6,2.53754]
[1753502833037,2.0319,3740.7,3740.6,2.98194]
[1753502834337,2.56642,3740.7,3740.6,2.4474]
[1753502834636,2.0319,3740.7,3740.6,2.53754]
[1753502835436,2.56642,3740.7,3740.6,2.53754]
[1753502835637,2.0319,3740.7,3740.6,2.53754]
[1753502836436,2.56642,3740.7,3740.6,2.53754]
[1753502836633,2.0319,3740.7,3740.6,2.53754]
[1753502837138,2.56642,3740.7,3740.6,2.53754]
[1753502837538,2.0319,3740.7,3740.6,2.53754]
[1753502838535,2.56642,3740.7,3740.6,2.53754]
[1753502838838,2.0319,3740.7,3740.6,2.53754]
[1753502839933,2.56642,3740.7,3740.6,2.53754]
[1753502842642,2.56642,3740.7,3740.6,2.003]
[1753502844344,0.5795,3740.4,3740.3,1.3099]
[1753502844541,1.892,3740.4,3740.1,0.53461]
[1753502844739,0.8726,3740.2,3740.1,1.28141]
[1753502844938,2.011,3740.2,3740.1,1.51137792]
[1753502845134,2.011,3740.2,3740.1,2.46417792]
[1753502845335,2.011,3740.2,3740.1,2.76757792]
[1753502847946,2.5456,3740.2,3740.1,2.76757792]
[1753502848151,2.011,3740.2,3740.1,2.76757792]
[1753502849748,2.5456,3740.2,3740.1,2.76757792]
[1753502850255,2.5456,3740.2,3740.1,2.23296792]
[1753502851651,2.5456,3740.2,3740.1,0.97676792]
[1753502852350,2.5456,3740.2,3740.1,1.57806792]
[1753502854256,3.26450828,3740.2,3740.1,0.22996792]
[1753502854552,3.26450828,3740.2,3739.8,0.7991689]
[1753502854553,2.54464,3739.9,3739.8,0.1978689]
[1753502854852,2.54464,3739.9,3739.8,1.5272689]
[1753502855054,2.54464,3739.9,3739.8,1.9310689]
[1753502855258,2.54464,3739.9,3739.8,2.2346689]
[1753502855555,3.26356197,3739.9,3739.8,2.2346689]
[1753502856153,2.54464,3739.9,3739.8,2.2346689]
[1753502856658,3.26337983,3739.9,3739.8,2.2346689]
[1753502856847,2.54464,3739.9,3739.8,2.2346689]
[1753502860255,2.54464,3739.9,3739.8,2.6563689]
[1753502864855,2.54464,3739.9,3739.8,2.2346689]
[1753502866159,2.54464,3739.9,3739.8,2.6563689]
[1753502868665,2.54464,3739.9,3739.8,2.2346689]
[1753502870561,3.99481454,3739.9,3739.8,0.1978689]
[1753502871858,3.99481454,3739.9,3739.8,0.6257689]
[1753502872360,3.99481454,3739.9,3739.8,2.2346689]
[1753502873765,8.99481454,3739.9,3739.8,0.1978689]
[1753502873960,1.77977,3739.0,3738.9,5.71444186]
[1753502874264,2.54477,3739.0,3738.9,5.29274186]
[1753502875364,2.54477,3739.0,3738.9,6.24922186]
[1753502875764,2.01,3739.0,3738.9,6.24922186]
[1753502876565,1.7034,3739.0,3738.9,6.24922186]
[1753502876962,1.8219,3739.0,3738.9,5.29274186]
[1753502877267,2.54627,3739.0,3738.9,4.98914186]
[1753502877463,2.54627,3739.0,3738.9,1.78134186]
[1753502879967,2.54627,3739.0,3738.9,0.77624186]
[1753502880659,2.0115,3739.0,3738.9,1.31102186]
[1753502881064,2.0115,3739.0,3738.9,2.55332186]
[1753502881264,2.0115,3739.0,3738.9,2.98142186]
[1753502882970,1.8219,3739.0,3738.9,2.98142186]
[1753502883769,1.2748,3739.3,3739.2,2.3965]
[1753502883963,1.3935,3739.3,3739.2,2.3965]
[1753502884364,2.36622,3739.3,3739.2,2.3965]
[1753502885571,2.55602,3739.3,3739.2,1.9684]
[1753502885971,3.27347691,3739.3,3739.2,1.9684]
[1753502886266,3.27347691,3739.3,3739.2,1.6847]
[1753502886473,4.00564016,3739.3,3739.2,1.1033]
[1753502887974,4.00564016,3739.3,3739.2,1.6847]
[1753502888676,4.00564016,3739.3,3739.2,0.7261]
[1753502889076,3.47092016,3739.3,3739.0,0.5814]
[1753502889379,2.55605,3739.1,3739.0,0.4418]
[1753502889876,2.55607,3739.0,3738.9,1.35564186]
[1753502890573,2.24757,3739.0,3738.9,2.44464186]
[1753502890880,3.2078,3739.4,3739.3,1.47992]
[1753502891077,3.2078,3739.4,3739.3,2.93122]
[1753502891883,3.6458,3739.4,3739.3,2.93122]
[1753502893883,3.2078,3739.4,3739.3,2.93122]
[1753502894084,3.6458,3739.8,3739.7,0.9452]
[1753502894283,4.3634096,3739.8,3739.7,2.3965]
[1753502894484,4.6568096,3739.8,3739.7,2.3965]
[1753502894687,5.5749596,3739.8,3739.7,2.93117]
[1753502894986,6.1728596,3739.8,3739.7,2.3965]
[1753502895188,3.2735596,3739.8,3739.7,1.9684]
[1753502895791,2.7389096,3739.8,3739.7,1.9684]
[1753502896384,2.7389096,3739.8,3739.7,2.50307]
[1753502897588,2.7389096,3739.8,3739.7,1.9684]
[1753502897987,2.7389096,3739.8,3739.7,2.50307]
[1753502900991,3.2735596,3739.8,3739.7,2.50307]
[1753502901791,2.7389096,3739.8,3739.7,2.50307]
[1753502901990,2.7389096,3739.8,3739.7,2.93117]
[1753502902392,2.5491096,3739.8,3739.7,2.93117]
[1753502903081,2.7389096,3739.8,3739.7,2.50307]
[1753502904290,1.1556096,3739.8,3739.7,2.93117]
[1753502904488,0.1187,3740.2,3740.1,2.3965]
[1753502904489,0.2934,3740.2,3740.1,2.3965]
[1753502904792,1.01133391,3740.2,3740.1,2.93111]
[1753502904988,2.54943391,3740.2,3740.1,2.93111]
[1753502905590,1.44933391,3740.2,3740.1,2.93111]
[1753502905791,1.15593391,3740.2,3740.1,2.93111]
[1753502906387,0.71793391,3740.2,3740.1,3.66327325]
[1753502906592,0.71793391,3740.2,3740.1,2.93111]
[1753502907095,1.15593391,3740.2,3740.1,2.93111]
[1753502907991,0.71793391,3740.2,3740.1,2.93111]
[1753502908498,1.3935,3740.8,3740.7,2.93102]
[1753502908683,1.9922097,3740.8,3740.7,2.93102]
[1753502908994,0.7174097,3740.8,3740.7,2.93102]
[1753502911194,1.1258097,3740.8,3740.7,2.93102]
[1753502913191,0.1563497,3740.8,3740.7,2.93102]
[1753502913493,0.4084,3741.0,3740.9,2.9022]
[1753502913896,0.56838327,3741.7,3741.5,0.9423]
[1753502914092,0.4084,3742.2,3742.1,2.90202]
[1753502914293,0.4084,3742.2,3742.1,6.10982]
[1753502914601,0.8621,3742.3,3742.2,2.90201]
[1753502914996,0.298,3742.3,3742.2,2.90201]
[1753502915399,0.4169,3742.8,3742.7,1.47654]
[1753502915601,0.298,3742.8,3742.7,2.90194]
[1753502916098,1.2464,3742.8,3742.7,2.90194]
[1753502916495,1.3653,3742.8,3742.7,2.90194]
[1753502916795,3.5058,3743.3,3743.2,0.53417]
[1753502916991,4.0803,3743.3,3743.2,0.89947]
[1753502917196,4.0803,3743.3,3743.2,0.53417]
[1753502917397,4.6076,3743.3,3743.2,1.28307]
[1753502917698,5.1717,3743.3,3743.2,1.28307]
[1753502920700,4.9815,3743.3,3743.2,2.90187]
[1753502920896,5.1717,3743.3,3743.2,2.90187]
[1753502921097,5.1717,3743.3,3743.2,1.91847]
[1753502921300,5.1717,3743.3,3743.2,2.47127]
[1753502921496,5.1717,3743.3,3743.2,2.90187]
[1753502924102,5.1717,3743.3,3743.2,2.47127]
[1753502925404,5.86384226,3743.3,3743.2,2.47127]
[1753502926607,5.1717,3743.3,3743.2,2.47127]
[1753502927108,5.1717,3743.3,3743.2,1.91847]
[1753502927902,5.70585,3743.3,3743.2,0.53417]
[1753502928110,5.1717,3743.3,3743.2,0.53417]
[1753502929205,5.70585,3743.3,3743.2,0.53417]
[1753502929704,5.1717,3743.3,3742.9,0.442]
[1753502929911,1.9639,3742.9,3742.8,0.53421]
[1753502930408,1.9639,3742.9,3742.8,1.28311]
[1753502930608,1.9639,3742.9,3742.8,2.47131]
[1753502930804,1.9639,3742.9,3742.8,2.90191]
[1753502931415,1.9639,3742.9,3742.8,2.20121]
[1753502931711,2.65610491,3742.9,3742.8,1.61731086]
[1753502932010,2.65610491,3742.9,3742.8,1.91851]
[1753502932207,2.65610491,3742.9,3742.8,3.23611074]
[1753502934802,2.46590491,3742.9,3742.8,3.23611074]
[1753502935008,0.69220491,3742.9,3742.8,3.23611074]
[1753502936302,0.69220491,3742.9,3742.8,3.23692619]
[1753502937317,3.2078,3743.3,3743.2,2.90187]
[1753502937515,3.2078,3743.3,3743.2,3.23688619]
[1753502937715,1.7737,3743.7,3743.6,2.3677]
[1753502937913,1.6548,3743.7,3743.6,2.70271619]
[1753502938115,1.6548,3743.7,3743.6,3.23682619]
[1753502939308,0.298,3743.7,3743.6,3.23682619]
[1753502939515,1.9737,3743.9,3743.8,2.90178]
[1753502939812,1.9737,3743.9,3743.8,3.23679619]
[1753502940008,1.8548,3743.9,3743.8,3.23679619]
[1753502940212,0.2,3743.9,3743.8,3.23679619]
[1753502941815,2.1902,3743.9,3743.8,3.23679619]
[1753502942013,2.1902,3743.9,3743.8,0.33501619]
[1753502942309,5.93207,3743.9,3743.8,0.33501619]
[1753502943115,5.398,3743.9,3743.8,2.76361619]
[1753502943309,5.93207,3743.9,3743.8,1.72771619]
[1753502944218,5.398,3743.9,3743.8,1.72771619]
[1753502944416,5.398,3743.9,3743.8,2.76361619]
[1753502944618,5.398,3743.9,3743.8,3.29769619]
[1753502945717,2.1902,3743.9,3743.8,3.29769619]
[1753502947618,2.1902,3743.9,3743.8,3.29732397]
[1753502948620,0.2,3743.9,3743.8,3.29732397]
[1753502948824,0.2,3743.9,3743.8,7.23728722]
[1753502950022,0.2,3743.9,3743.8,6.50512397]
[1753502950222,2.0014,3743.9,3743.8,6.50512397]
[1753502950417,2.1907,3743.9,3743.8,6.50512397]
[1753502951415,2.1907,3743.9,3743.8,1.36164397]
[1753502951622,2.1907,3743.9,3743.8,1.16672397]
[1753502951929,2.1907,3743.9,3743.8,0.86872397]
[1753502953221,2.1907,3743.9,3743.8,2.49132397]
[1753502953522,2.1907,3743.9,3743.8,2.85702397]
[1753502954028,2.1907,3743.9,3743.8,0.63264397]
[1753502954225,2.1907,3743.9,3743.8,1.16672397]
[1753502955027,2.72477,3743.9,3743.8,1.07834267]
[1753502955627,2.1907,3743.9,3743.8,1.07834267]
[1753502955827,2.72477,3743.9,3743.8,1.07834267]
[1753502956418,0.868,3743.7,3743.6,1.5611]
[1753502956623,1.9907,3743.7,3743.6,1.89466793]
[1753502956823,2.5248,3743.7,3743.6,1.89466793]
[1753502957326,2.5248,3743.7,3743.6,1.07706793]
[1753502957528,2.5248,3743.7,3743.6,0.33356793]
[1753502958127,1.9907,3743.7,3743.6,3.29627793]
[1753502958329,1.8014,3743.7,3743.6,3.29627793]
[1753502958927,1.6831,3743.7,3743.6,3.29627793]
[1753502959231,1.6831,3743.7,3743.6,3.29632151]
[1753502959528,0.2953,3743.7,3743.6,3.29632151]
[1753502959724,1.8014,3743.7,3743.6,3.29632151]
[1753502960533,1.9907,3743.7,3743.6,3.29632151]
[1753502961727,1.9907,3743.7,3743.6,1.61122151]
[1753502962427,1.9907,3743.7,3743.6,1.89472151]
[1753502962732,1.9907,3743.7,3743.6,3.29632151]
[1753502964841,3.4078,3743.9,3743.8,1.48128]
[1753502965030,4.09389947,3743.9,3743.8,4.02845476]
[1753502965230,3.4078,3743.9,3743.8,4.02845476]
[1753502965430,4.0945232,3743.9,3743.8,4.02845476]
[1753502965632,0.018,3744.3,3744.2,2.36702]
[1753502965930,0.018,3744.3,3744.2,3.29623151]
[1753502970448,2.4298,3744.3,3744.2,3.29623151]
[1753502971043,2.4298,3744.3,3744.2,3.29661127]
[1753502972446,0.018,3744.3,3744.2,3.29661127]
[1753502973949,0.018,3744.3,3744.2,3.29619848]
[1753502975848,0.018,3744.3,3744.2,3.52114716]
[1753502982053,1e-05,3744.3,3744.2,8.52114716]
[1753502982453,0.4181,3744.9,3744.8,2.37144]
[1753502982653,0.4181,3744.9,3744.8,18.18477505]
[1753502983558,2.4125,3745.1,3745.0,2.92721]
[1753502983760,2.4125,3745.1,3745.0,3.2597818]
[1753502985662,0.2899,3745.1,3745.0,3.2597818]
[1753502986257,1.8512,3745.3,3745.2,0.53388]
[1753502986462,2.4125,3745.3,3745.2,6.4675518]
[1753502988461,2.4125,3745.3,3745.2,6.47153486]
[1753502988956,1.1656,3745.9,3745.8,0.5338]
[1753502989156,1.1656,3745.9,3745.8,0.87035486]
[1753502989562,2.6125,3745.9,3745.8,0.87035486]
[1753502990663,2.6125,3745.9,3745.8,1.16005486]
[1753502990858,2.6125,3745.9,3745.8,2.96665486]
[1753502991365,2.6125,3745.9,3745.8,2.53585486]
[1753502991663,2.6125,3745.9,3745.8,1.54985486]
[1753502992065,2.6125,3745.9,3745.8,3.26365486]
[1753502993166,2.6125,3745.9,3745.8,3.99581811]
[1753502995856,2.6125,3745.9,3745.8,0.87035486]
[1753502997361,2.6125,3745.9,3745.8,0.87035877]
[1753502997768,2.6125,3745.9,3745.8,0.33655877]
[1753502997966,2.6125,3745.9,3745.8,0.87035877]
[1753502998963,8.14628,3745.9,3745.8,0.33655877]
[1753502999268,2.4125,3745.2,3745.1,0.53389]
[1753503001072,2.3444,3745.1,3745.0,0.5339]
[1753503002166,2.3444,3745.1,3745.0,1.9166]
[1753503002360,2.3444,3745.1,3745.0,2.8785]
[1753503004372,2.3444,3745.1,3745.0,1.9166]
[1753503004667,2.3444,3745.1,3745.0,0.5339]
[1753503004973,0.9232,3744.6,3744.5,5.12448]
[1753503005176,2.3444,3744.6,3744.5,6.31162603]
[1753503006276,2.3444,3744.9,3744.8,2.87854]
[1753503006471,2.3444,3744.9,3744.8,3.10378603]
[1753503007875,2.3444,3744.9,3744.8,2.56984603]
[1753503008878,2.3444,3744.9,3744.8,3.10378603]
[1753503009074,2.3444,3744.9,3744.8,2.87854]
[1753503009873,2.3444,3744.9,3744.8,2.3446]
[1753503010080,2.3444,3744.9,3744.8,2.87854]
[1753503010474,2.3444,3744.9,3744.8,1.91664]